lending/lending_fUSD_20240219
["ID","MTS","AMOUNT","RATE_DAILY","PERIOD"]
[314509577,1708378289237,-500.0,0.00049315,30]
[314509578,1708378289248,-716.96043868,0.00049315,30]
[314509579,1708378289259,-396.74077807,0.00049315,30]
[314509580,1708378289288,-715.58582664,0.00049315,30]
[314509581,1708378289297,-652.17,0.00049315,30]
[314509582,1708378289307,-721.84,0.00049315,30]
[314509583,1708378289316,-567.06,0.00049315,30]
[314509584,1708378289325,-5232.16,0.00049315,30]
[314509585,1708378289334,-827.49,0.00049315,30]
[314509586,1708378289344,-509.98,0.00049315,30]
[314509587,1708378289354,-676.76,0.00049315,30]
[314509588,1708378289363,-500.0,0.00049315,30]
[314509589,1708378289373,-500.0,0.00049315,30]
[314509590,1708378289383,-627.95,0.00049315,30]
[314509591,1708378289392,-931.02,0.00049315,30]
[314509592,1708378289402,-500.0,0.00049315,30]
[314509593,1708378289411,-2919.49,0.00049315,30]
[314509594,1708378289421,-770.48,0.00049315,30]
[314509595,1708378289431,-438.72495373,0.00049315,30]
[314509596,1708378289443,-308.09304801,0.00049315,30]
[314509597,1708378289455,-761.18199826,0.00049315,30]
[314509598,1708378289464,-500.0,0.00049315,30]
[314509599,1708378289474,-2082.95,0.00049315,30]
[314509600,1708378289483,-328.62385879,0.00049315,30]
[314509601,1708378289553,-339.30614121,0.00049315,30]
[314509602,1708378289562,-258.28508083,0.00049315,30]
[314509603,1708378289574,-620.79491917,0.00049315,30]
[314509604,1708378289583,-2826.01,0.00049315,30]
[314509605,1708378289593,-500.0,0.00049315,30]
[314509606,1708378289604,-682.03,0.00049315,30]
[314509607,1708378289613,-754.56,0.00049315,30]
[314509608,1708378289624,-500.0,0.00049315,30]
[314509609,1708378289634,-935.53,0.00049315,30]
[314509610,1708378289644,-172.87033502,0.00049315,30]
[314509611,1708378289653,-500.0,0.00049315,30]
[314509612,1708378289665,-681.27,0.00049315,30]
[314509613,1708378289675,-500.0,0.00049315,30]
[314509614,1708378289686,-621.53,0.00049315,30]
[314509615,1708378289695,-500.0,0.00049315,30]
[314509616,1708378289705,-2727.92,0.00049315,30]
[314509617,1708378289715,-3736.72,0.00049315,30]
[314509618,1708378289724,-2391.1,0.00049315,30]
[314509619,1708378289733,-500.0,0.00049315,30]
[314509620,1708378289742,-911.34,0.00049315,30]
[314509621,1708378289752,-500.0,0.00049315,30]
[314509622,1708378289763,-621.49,0.00049315,30]
[314509623,1708378289774,-1344.48,0.00049315,30]
[314509624,1708378289783,-734.87,0.00049315,30]
[314509625,1708378289793,-1048.43873874,0.00049315,30]
[314509626,1708378289806,-521.67126126,0.00049315,30]
[314509627,1708378289815,-734.87,0.00049315,30]
[314509628,1708378289825,-734.87,0.00049315,30]
[314509629,1708378289835,-734.87,0.00049315,30]
[314509630,1708378289846,-734.87,0.00049315,30]
[314509631,1708378289856,-734.87,0.00049315,30]
[314509632,1708378289865,-500.0,0.00049315,30]
[314509633,1708378289874,-734.87,0.00049315,30]
[314509634,1708378289884,-734.87,0.00049315,30]
[314509635,1708378289893,-734.87,0.00049315,30]
[314509636,1708378289904,-734.87,0.00049315,30]
[314509637,1708378289917,-734.87,0.00049315,30]
[314509638,1708378289927,-1652.53,0.00049315,30]
[314509639,1708378289937,-1932.30313227,0.00049315,30]
[314509640,1708378289948,-1321.86465,0.00049315,30]
[314509641,1708378289960,-604.99221773,0.00049315,30]
[314509642,1708378289969,-663.1,0.00049315,30]
[314509643,1708378289978,-985.06,0.00049315,30]
[314509644,1708378289987,-500.0,0.00049315,30]
[314509645,1708378289997,-500.0,0.00049315,30]
[314509646,1708378290006,-996.52,0.00049315,30]
[314509647,1708378290015,-852.41,0.00049315,30]
[314509648,1708378290025,-1485.86,0.00049315,30]
[314509649,1708378290035,-568.62,0.00049315,30]
[314509650,1708378290045,-1191.69,0.00049315,30]
[314509651,1708378290054,-798.22,0.00049315,30]
[314509652,1708378290063,-4686.71222427,0.00049315,30]
[314509653,1708378290080,-1071.76777573,0.00049315,30]
[314509654,1708378290090,-805.12,0.00049315,30]
[314509655,1708378290099,-500.0,0.00049315,30]
[314509656,1708378290109,-500.0,0.00049315,30]
[314509657,1708378290119,-736.93,0.00049315,30]
[314509658,1708378290129,-557.43,0.00049315,30]
[314509659,1708378290140,-960.56,0.00049315,30]
[314509660,1708378290149,-767.8,0.00049315,30]
[314509661,1708378290159,-948.13,0.00049315,30]
[314509662,1708378290169,-694.18,0.00049315,30]
[314509663,1708378290178,-615.5,0.00049315,30]
[314509664,1708378290188,-606.15,0.00049315,30]
[314509665,1708378290197,-1500.42,0.00049315,30]
[314509666,1708378290207,-500.0,0.00049315,30]
[314509667,1708378290217,-500.0,0.00049315,30]
[314509668,1708378290227,-2154.3,0.00049315,30]
[314509669,1708378290237,-500.0,0.00049315,30]
[314509670,1708378290247,-500.0,0.00049315,30]
[314509671,1708378290256,-500.0,0.00049315,30]
[314509672,1708378290266,-1136.93,0.00049315,30]
[314509673,1708378290275,-618.37,0.00049315,30]
[314509674,1708378290286,-457.56593167,0.00049315,30]
[314509675,1708378290296,-730.88,0.00049315,30]
[314509676,1708378290305,-752.2,0.00049315,30]
[314509677,1708378290315,-539.17,0.00049315,30]
[314509678,1708378290324,-500.0,0.00049315,30]
[314509679,1708378290334,-473.72260213,0.00049315,30]
[314509680,1708378290344,-622.72,0.00049315,30]
[314509681,1708378290353,-500.0,0.00049315,30]
[314509682,1708378290363,-500.0,0.00049315,30]
[314509683,1708378290373,-818.54,0.00049315,30]
[314509684,1708378290382,-500.0,0.00049315,30]
[314509685,1708378290392,-4432.09,0.00049315,30]
[314509686,1708378290402,-429.34426012,0.00049315,30]
[314509687,1708378290411,-500.0,0.00049315,30]
[314509688,1708378290611,-620.54,0.00049315,30]
[314509689,1708378290621,-603.0,0.00049315,30]
[314509690,1708378290631,-794.43,0.00049315,30]
[314509691,1708378290642,-500.0,0.00049315,30]
[314509692,1708378290651,-500.0,0.00049315,30]
[314509693,1708378290661,-686.83,0.00049315,30]
[314509694,1708378290671,-906.15,0.00049315,30]
[314509695,1708378290681,-150.0,0.00049315,2]
[314509696,1708378290690,-6152.78657475,0.00049319,10]
[314509697,1708378290700,-156.89813651,0.00049433,30]
[314509698,1708378290710,-150.0,0.00049459,2]
[314509699,1708378290720,-151.022088,0.00049498,43]
[314509700,1708378290730,-557.64,0.00049564,120]
[314509701,1708378290739,-153.92923272,0.00049573,30]
[314509702,1708378290749,-546.59874568,0.00049588,30]
[314509703,1708378290759,-657.98,0.00049588,30]
[314509704,1708378290772,-603.0930635,0.00049588,30]
[314509705,1708378290781,-3206.88,0.00049588,30]
[314509706,1708378290791,-1545.44,0.00049588,30]
[314509707,1708378290803,-500.0,0.00049588,30]
[314509708,1708378290813,-1342.5,0.00049588,30]
[314509709,1708378290823,-553.12,0.00049588,30]
[314509710,1708378290834,-539.82,0.00049588,30]
[314509711,1708378290843,-939.22,0.00049588,30]
[314509712,1708378290854,-500.0,0.00049588,30]
[314509713,1708378290866,-500.0,0.00049588,30]
[314509714,1708378290875,-1480.33,0.00049588,30]
[314509715,1708378290886,-1201.84,0.00049588,30]
[314509716,1708378290895,-3755.48,0.00049588,30]
[314509717,1708378290905,-934.41,0.00049588,30]
[314509718,1708378290916,-637.62,0.00049588,30]
[314509719,1708378290925,-1480.26,0.00049588,30]
[314509720,1708378290934,-926.06,0.00049588,30]
[314509721,1708378290945,-500.0,0.00049588,14]
[314509722,1708378290954,-880.08,0.00049588,30]
[314509723,1708378290964,-500.0,0.00049588,30]
[314509724,1708378290973,-947.09,0.00049588,30]
[314509725,1708378290983,-1477.41,0.00049588,30]
[314509726,1708378290993,-769.92,0.00049588,30]
[314509727,1708378291003,-643.45,0.00049588,30]
[314509728,1708378291012,-1264.68,0.00049588,30]
[314509729,1708378291022,-500.0,0.00049588,30]
[314509730,1708378291032,-457.91,0.00049588,30]
[314509731,1708378291041,-1052.12,0.00049588,30]
[314509732,1708378291051,-779.2,0.00049588,30]
[314509733,1708378291061,-971.77,0.00049588,30]
[314509734,1708378291071,-189.56,0.00049589,30]
[314509735,1708378291080,-500.0,0.00049589,30]
[314509736,1708378291090,-500.0,0.00049589,30]
[314509737,1708378291099,-393.36,0.00049589,30]
[314509738,1708378291108,-500.0,0.00049589,30]
[314509739,1708378291117,-500.0,0.00049589,30]
[314509740,1708378291127,-560.79082669,0.00049589,30]
[314509741,1708378291136,-612.7,0.00049589,30]
[314509742,1708378291146,-500.0,0.00049589,30]
[314509743,1708378291155,-500.0,0.00049589,30]
[314509744,1708378291164,-549.41,0.00049589,30]
[314509745,1708378291173,-500.0,0.00049589,2]
[314509746,1708378291182,-500.0,0.00049589,30]
[314509747,1708378291192,-500.0,0.00049589,30]
[314509748,1708378291201,-500.0,0.00049589,30]
[314509749,1708378291210,-500.0,0.00049589,30]
[314509750,1708378291220,-578.5,0.00049589,30]
[314509751,1708378291229,-500.0,0.00049589,30]
[314509752,1708378291239,-613.78,0.00049589,30]
[314509753,1708378291249,-500.0,0.00049589,30]
[314509754,1708378291258,-500.0,0.00049589,30]
[314509755,1708378291268,-500.0,0.00049589,30]
[314509756,1708378291278,-500.0,0.00049589,30]
[314509757,1708378291289,-500.0,0.00049589,30]
[314509758,1708378291300,-500.0,0.00049589,30]
[314509759,1708378291309,-500.0,0.00049589,30]
[314509760,1708378291318,-500.0,0.00049589,30]
[314509761,1708378291327,-500.0,0.00049589,30]
[314509762,1708378291337,-500.0,0.00049589,30]
[314509763,1708378291347,-500.0,0.00049589,30]
[314509764,1708378291357,-508.02349765,0.00049589,30]
[314509765,1708378291367,-500.0,0.00049589,30]
[314509766,1708378291377,-268.22804355,0.00049589,30]
[314509767,1708378291387,-500.0,0.00049589,30]
[314509768,1708378291397,-500.0,0.00049589,30]
[314509769,1708378291406,-500.0,0.00049589,30]
[314509770,1708378291416,-500.0,0.00049589,30]
[314509771,1708378291427,-500.0,0.00049589,30]
[314509772,1708378291437,-500.0,0.00049589,30]
[314509773,1708378291446,-500.0,0.00049589,30]
[314509774,1708378291455,-500.0,0.00049589,30]
[314509775,1708378291466,-500.0,0.00049589,30]
[314509776,1708378291476,-631.84,0.00049589,30]
[314509777,1708378291486,-500.0,0.00049589,30]
[314509778,1708378291496,-500.0,0.00049589,30]
[314509779,1708378291507,-414.14035581,0.00049589,30]
[314509780,1708378291517,-500.0,0.00049589,30]
[314509781,1708378291527,-500.0,0.00049589,30]
[314509782,1708378291539,-500.0,0.00049589,30]
[314509783,1708378291548,-500.0,0.00049589,30]
[314509784,1708378291558,-500.0,0.00049589,30]
[314509785,1708378291570,-500.0,0.00049589,30]
[314509786,1708378291579,-500.0,0.00049589,30]
[314509787,1708378291588,-500.0,0.00049589,30]
[314509788,1708378291597,-500.0,0.00049589,30]
[314509789,1708378291607,-500.0,0.00049589,30]
[314509790,1708378291616,-500.0,0.00049589,30]
[314509791,1708378291625,-500.0,0.00049589,30]
[314509792,1708378291635,-612.02,0.00049589,30]
[314509793,1708378291645,-500.0,0.00049589,30]
[314509794,1708378291654,-500.0,0.00049589,30]
[314509795,1708378291663,-500.0,0.00049589,30]
[314509796,1708378291675,-500.0,0.00049589,30]
[314509797,1708378291686,-500.0,0.00049589,30]
[314509798,1708378291696,-500.0,0.00049589,30]
[314509799,1708378291705,-500.0,0.00049589,30]
[314509800,1708378291714,-500.0,0.00049589,30]
[314509801,1708378291723,-150.0,0.00049589,30]
[314509802,1708378291733,-500.0,0.00049589,30]
[314509803,1708378291742,-500.0,0.00049589,30]
[314509804,1708378291752,-500.0,0.00049589,30]
[314509805,1708378291762,-500.0,0.00049589,30]
[314509806,1708378291775,-500.0,0.00049589,30]
[314509807,1708378291784,-500.0,0.00049589,30]
[314509808,1708378291793,-500.0,0.00049589,30]
[314509809,1708378291803,-500.0,0.00049589,30]
[314509810,1708378291812,-500.0,0.00049589,30]
[314509811,1708378291821,-500.0,0.00049589,30]
[314509812,1708378291830,-500.0,0.00049589,30]
[314509813,1708378291841,-500.0,0.00049589,30]
[314509814,1708378291851,-500.0,0.00049589,30]
[314509815,1708378291860,-500.0,0.00049589,30]
[314509816,1708378291869,-500.0,0.00049589,30]
[314509817,1708378291879,-500.0,0.00049589,30]
[314509818,1708378291888,-500.0,0.00049589,30]
[314509819,1708378291897,-500.0,0.00049589,30]
[314509820,1708378291906,-551.99,0.00049589,30]
[314509821,1708378291916,-500.0,0.00049589,30]
[314509822,1708378291926,-500.0,0.00049589,30]
[314509823,1708378291935,-500.0,0.00049589,30]
[314509824,1708378291945,-500.0,0.00049589,30]
[314509825,1708378291956,-1055.55,0.00049589,30]
[314509826,1708378291966,-500.0,0.00049589,30]
[314509827,1708378291976,-500.0,0.00049589,30]
[314509828,1708378291985,-1053.87,0.00049589,30]
[314509829,1708378291995,-500.0,0.00049589,30]
[314509830,1708378292005,-242.68470207,0.00049589,30]
[314509831,1708378292015,-885.63,0.00049589,30]
[314509832,1708378292024,-500.0,0.00049589,30]
[314509833,1708378292034,-1946.34,0.00049589,30]
[314509834,1708378292044,-1181.82,0.00049589,30]
[314509835,1708378292054,-500.0,0.00049589,30]
[314509836,1708378292063,-500.0,0.00049589,30]
[314509837,1708378292073,-1706.97,0.00049589,30]
[314509838,1708378292082,-1056.83,0.00049589,30]
[314509839,1708378292092,-500.0,0.00049589,30]
[314509840,1708378292101,-8268.96,0.00049589,30]
[314509841,1708378292111,-500.0,0.00049589,2]
[314509842,1708378292121,-500.0,0.00049589,30]
[314509843,1708378292130,-550.51,0.00049589,30]
[314509844,1708378292140,-246.0,0.00049589,30]
[314509845,1708378292149,-1596.86,0.00049589,30]
[314509846,1708378292159,-500.0,0.00049589,30]
[314509847,1708378292169,-1325.65,0.00049589,30]
[314509848,1708378292179,-713.28,0.00049589,30]
[314509849,1708378292188,-487.34,0.00049589,30]
[314509850,1708378292198,-695.11,0.00049589,30]
[314509851,1708378292207,-500.0,0.00049589,30]
[314509852,1708378292217,-2195.2,0.00049589,30]
[314509853,1708378292227,-1556.15,0.00049589,30]
[314509854,1708378292236,-947.74,0.00049589,30]
[314509855,1708378292246,-500.0,0.00049589,30]
[314509856,1708378292255,-500.0,0.00049589,30]
[314509857,1708378292264,-1791.71,0.00049589,30]
[314509858,1708378292274,-500.0,0.00049589,30]
[314509859,1708378292283,-3566.95,0.00049589,30]
[314509860,1708378292293,-841.6,0.00049589,30]
[314509861,1708378292302,-1316.43,0.00049589,30]
[314509862,1708378292312,-500.0,0.00049589,30]
[314509863,1708378292322,-1280.74,0.00049589,30]
[314509864,1708378292332,-18426.89,0.00049589,30]
[314509865,1708378292341,-1010.76,0.00049589,30]
[314509866,1708378292351,-500.0,0.00049589,30]
[314509867,1708378292361,-885.16,0.00049589,30]
[314509868,1708378292371,-500.0,0.00049589,30]
[314509869,1708378292381,-1538.6,0.00049589,30]
[314509870,1708378292390,-747.64,0.00049589,30]
[314509871,1708378292399,-1095.22,0.00049589,30]
[314509872,1708378292408,-946.11,0.00049589,30]
[314509873,1708378292418,-500.0,0.00049589,30]
[314509874,1708378292428,-500.0,0.00049589,30]
[314509875,1708378292437,-1186.66,0.00049589,30]
[314509876,1708378292446,-536.42,0.00049589,30]
[314509877,1708378292456,-500.0,0.00049589,30]
[314509878,1708378292465,-1136.16,0.00049589,30]
[314509879,1708378292474,-6609.47,0.00049589,30]
[314509880,1708378292483,-1468.29,0.00049589,30]
[314509881,1708378292492,-500.0,0.00049589,30]
[314509882,1708378292502,-500.0,0.00049589,30]
[314509883,1708378292511,-668.15,0.00049589,30]
[314509884,1708378292520,-929.27,0.00049589,30]
[314509885,1708378292529,-500.0,0.00049589,30]
[314509886,1708378292538,-634.08,0.00049589,30]
[314509887,1708378292547,-500.0,0.00049589,30]
[314509888,1708378292557,-500.0,0.00049589,30]
[314509889,1708378292566,-896.45,0.00049589,30]
[314509890,1708378292575,-1328.4,0.00049589,30]
[314509891,1708378292585,-500.0,0.00049589,30]
[314509892,1708378292594,-500.0,0.00049589,30]
[314509893,1708378292603,-781.17,0.00049589,30]
[314509894,1708378292612,-808.14,0.00049589,30]
[314509895,1708378292621,-2516.47,0.00049589,30]
[314509896,1708378292630,-652.17,0.00049589,30]
[314509897,1708378292640,-721.84,0.00049589,30]
[314509898,1708378292649,-567.06,0.00049589,30]
[314509899,1708378292658,-5232.16,0.00049589,30]
[314509900,1708378292668,-827.49,0.00049589,30]
[314509901,1708378292678,-509.98,0.00049589,30]
[314509902,1708378292688,-676.76,0.00049589,30]
[314509903,1708378292697,-500.0,0.00049589,30]
[314509904,1708378292707,-500.0,0.00049589,30]
[314509905,1708378292717,-627.95,0.00049589,30]
[314509906,1708378292727,-931.02,0.00049589,30]
[314509907,1708378292736,-500.0,0.00049589,30]
[314509908,1708378292745,-2919.49,0.00049589,30]
[314509909,1708378292755,-770.48,0.00049589,30]
[314509910,1708378292767,-1508.0,0.00049589,30]
[314509911,1708378292777,-176.93343022,0.00049589,30]
[314509912,1708378292787,-2082.95,0.00049589,30]
[314509913,1708378292796,-667.93,0.00049589,30]
[314509914,1708378292806,-879.08,0.00049589,30]
[314509915,1708378292815,-2826.01,0.00049589,30]
[314509916,1708378292825,-500.0,0.00049589,30]
[314509917,1708378292835,-682.03,0.00049589,30]
[314509918,1708378292844,-754.56,0.00049589,30]
[314509919,1708378292855,-500.0,0.00049589,30]
[314509920,1708378292866,-935.53,0.00049589,30]
[314509921,1708378292875,-500.0,0.00049589,30]
[314509922,1708378292885,-681.27,0.00049589,30]
[314509923,1708378292895,-500.0,0.00049589,30]
[314509924,1708378292905,-621.53,0.00049589,30]
[314509925,1708378292916,-500.0,0.00049589,30]
[314509926,1708378292925,-2727.92,0.00049589,30]
[314509927,1708378292935,-3736.72,0.00049589,30]
[314509928,1708378292944,-2391.1,0.00049589,30]
[314509929,1708378292954,-500.0,0.00049589,30]
[314509930,1708378292964,-911.34,0.00049589,30]
[314509931,1708378292973,-500.0,0.00049589,30]
[314509932,1708378292983,-621.49,0.00049589,30]
[314509933,1708378292993,-1344.48,0.00049589,30]
[314509934,1708378293002,-1570.11,0.00049589,30]
[314509935,1708378293012,-500.0,0.00049589,30]
[314509936,1708378293022,-734.87,0.00049589,30]
[314509937,1708378293031,-1652.53,0.00049589,30]
[314509938,1708378293041,-3859.16,0.00049589,30]
[314509939,1708378293050,-663.1,0.00049589,30]
[314509940,1708378293060,-985.06,0.00049589,30]
[314509941,1708378293070,-500.0,0.00049589,30]
[314509942,1708378293080,-500.0,0.00049589,30]
[314509943,1708378293089,-996.52,0.00049589,30]
[314509944,1708378293099,-852.41,0.00049589,30]
[314509945,1708378293109,-1485.86,0.00049589,30]
[314509946,1708378293119,-1191.69,0.00049589,30]
[314509947,1708378293129,-568.62,0.00049589,30]
[314509948,1708378293139,-798.22,0.00049589,30]
[314509949,1708378293149,-5758.48,0.00049589,30]
[314509950,1708378293158,-805.12,0.00049589,30]
[314509951,1708378293168,-500.0,0.00049589,30]
[314509952,1708378293178,-736.93,0.00049589,30]
[314509953,1708378293188,-557.43,0.00049589,30]
[314509954,1708378293198,-960.56,0.00049589,30]
[314509955,1708378293208,-500.0,0.00049589,30]
[314509956,1708378293217,-767.8,0.00049589,30]
[314509957,1708378293228,-948.13,0.00049589,30]
[314509958,1708378293237,-694.18,0.00049589,30]
[314509959,1708378293247,-615.5,0.00049589,30]
[314509960,1708378293257,-606.15,0.00049589,30]
[314509961,1708378293267,-1500.42,0.00049589,30]
[314509962,1708378293277,-500.0,0.00049589,30]
[314509963,1708378293286,-203.51,0.00049589,30]
[314509964,1708378293296,-2154.3,0.00049589,30]
[314509965,1708378293305,-500.0,0.00049589,30]
[314509966,1708378293315,-500.0,0.00049589,30]
[314509967,1708378293325,-556.8,0.00049589,30]
[314509968,1708378293334,-1136.93,0.00049589,30]
[314509969,1708378293344,-618.37,0.00049589,30]
[314509970,1708378293354,-730.88,0.00049589,30]
[314509971,1708378293364,-752.2,0.00049589,30]
[314509972,1708378293374,-539.17,0.00049589,30]
[314509973,1708378293383,-500.0,0.00049589,30]
[314509974,1708378293393,-622.72,0.00049589,30]
[314509975,1708378293403,-500.0,0.00049589,30]
[314509976,1708378293413,-500.0,0.00049589,30]
[314509977,1708378293423,-818.54,0.00049589,30]
[314509978,1708378293432,-500.0,0.00049589,30]
[314509979,1708378293442,-4432.09,0.00049589,30]
[314509980,1708378293452,-500.0,0.00049589,30]
[314509981,1708378293462,-620.54,0.00049589,30]
[314509982,1708378293471,-794.43,0.00049589,30]
[314509983,1708378293480,-500.0,0.00049589,30]
[314509984,1708378293490,-603.0,0.00049589,30]
[314509985,1708378293500,-500.0,0.00049589,30]
[314509986,1708378293510,-686.83,0.00049589,30]
[314509987,1708378293519,-906.15,0.00049589,30]
[314509988,1708378293528,-3639.21,0.00049589,5]
[314509989,1708378293538,-153.92923272,0.00049725,30]
[314509990,1708378293547,-153.09436399,0.0004977,43]
[314509991,1708378293557,-165.78496257,0.00049786,30]
[314509992,1708378293567,-151.022088,0.00049798,43]
[314509993,1708378293577,-2373.8,0.00049829,117]
[314509994,1708378293586,-153.92923272,0.00049843,30]
[314509995,1708378293596,-657.98,0.00049862,30]
[314509996,1708378293605,-3206.88,0.00049862,30]
[314509997,1708378293615,-1545.44,0.00049862,30]
[314509998,1708378293625,-500.0,0.00049862,30]
[314509999,1708378293635,-1342.5,0.00049862,30]
[314510000,1708378293645,-553.12,0.00049862,30]
[314510001,1708378293654,-539.82,0.00049862,30]
[314510002,1708378293663,-939.22,0.00049862,30]
[314510003,1708378293673,-500.0,0.00049862,30]
[314510004,1708378293683,-500.0,0.00049862,30]
[314510005,1708378293693,-1480.33,0.00049862,30]
[314510006,1708378293702,-1201.84,0.00049862,30]
[314510007,1708378293711,-3755.48,0.00049862,30]
[314510008,1708378293721,-934.41,0.00049862,30]
[314510009,1708378293730,-637.62,0.00049862,30]
[314510010,1708378293740,-1480.26,0.00049862,30]
[314510011,1708378293749,-926.06,0.00049862,30]
[314510012,1708378293759,-880.08,0.00049862,30]
[314510013,1708378293773,-500.0,0.00049862,30]
[314510014,1708378293783,-947.09,0.00049862,30]
[314510015,1708378293793,-1477.41,0.00049862,30]
[314510016,1708378293803,-769.92,0.00049862,30]
[314510017,1708378293812,-643.45,0.00049862,30]
[314510018,1708378293822,-1264.68,0.00049862,30]
[314510019,1708378293832,-500.0,0.00049862,30]
[314510020,1708378293843,-1052.12,0.00049862,30]
[314510021,1708378293852,-779.2,0.00049862,30]
[314510022,1708378293862,-971.77,0.00049862,30]
[314510023,1708378293872,-630.06,0.00049863,30]
[314510024,1708378293881,-494.87667124,0.00049863,30]
[314510025,1708378293891,-500.0,0.00049863,30]
[314510026,1708378293901,-500.0,0.00049863,30]
[314510027,1708378293913,-286.02838922,0.00049863,30]
[314510028,1708378293923,-500.0,0.00049863,30]
[314510029,1708378293933,-549.41,0.00049863,30]
[314510030,1708378293943,-500.0,0.00049863,2]
[314510031,1708378293953,-500.0,0.00049863,30]
[314510032,1708378293962,-500.0,0.00049863,30]
[314510033,1708378293972,-352.11,0.00049863,30]
[314510034,1708378293982,-523.91,0.00049863,30]
[314510035,1708378293991,-645.9011023,0.00049863,30]
[314510036,1708378294001,-613.78,0.00049863,30]
[314510037,1708378294011,-500.0,0.00049863,30]
[314510038,1708378294020,-401.68,0.00049863,30]
[314510039,1708378294030,-500.0,0.00049863,30]
[314510040,1708378294040,-500.0,0.00049863,30]
[314510041,1708378294050,-500.0,0.00049863,30]
[314510042,1708378294059,-191.33,0.00049863,30]
[314510043,1708378294070,-500.0,0.00049863,30]
[314510044,1708378294079,-500.0,0.00049863,30]
[314510045,1708378294089,-500.0,0.00049863,30]
[314510046,1708378294098,-500.0,0.00049863,30]
[314510047,1708378294108,-166.6,0.00049863,30]
[314510048,1708378294117,-500.0,0.00049863,30]
[314510049,1708378294127,-500.0,0.00049863,30]
[314510050,1708378294136,-500.0,0.00049863,30]
[314510051,1708378294146,-500.0,0.00049863,30]
[314510052,1708378294155,-500.0,0.00049863,30]
[314510053,1708378294164,-335.58,0.00049863,30]
[314510054,1708378294174,-500.0,0.00049863,30]
[314510055,1708378294184,-500.0,0.00049863,30]
[314510056,1708378294193,-500.0,0.00049863,30]
[314510057,1708378294203,-500.0,0.00049863,30]
[314510058,1708378294212,-631.84,0.00049863,30]
[314510059,1708378294222,-500.0,0.00049863,30]
[314510060,1708378294231,-500.0,0.00049863,30]
[314510061,1708378294242,-500.0,0.00049863,30]
[314510062,1708378294251,-500.0,0.00049863,30]
[314510063,1708378294261,-500.0,0.00049863,30]
[314510064,1708378294271,-500.0,0.00049863,30]
[314510065,1708378294281,-475.36058712,0.00049863,30]
[314510066,1708378294291,-500.0,0.00049863,30]
[314510067,1708378294300,-457.15505334,0.00049863,30]
[314510068,1708378294310,-500.0,0.00049863,30]
[314510069,1708378294319,-500.0,0.00049863,30]
[314510070,1708378294329,-500.0,0.00049863,30]
[314510071,1708378294339,-500.0,0.00049863,30]
[314510072,1708378294349,-500.0,0.00049863,30]
[314510073,1708378294358,-612.02,0.00049863,30]
[314510074,1708378294367,-500.0,0.00049863,30]
[314510075,1708378294377,-500.0,0.00049863,30]
[314510076,1708378294386,-500.0,0.00049863,30]